bitfinex-derivatives/quotes_BTCF0:USTF0_20240903
["timestamp","ask_amount","ask_price","bid_price","bid_amount"]
[1725378564514,0.151624,57735.0,57734.0,0.0305321]
[1725378565515,0.151624,57735.0,57734.0,0.09939139]
[1725378566608,0.151624,57735.0,57734.0,0.0305321]
[1725378566819,0.151624,57735.0,57734.0,0.1171571]
[1725378567011,0.151624,57735.0,57734.0,0.09939139]
[1725378567919,0.151624,57735.0,57734.0,0.0305321]
[1725378568812,0.151624,57735.0,57734.0,0.3571571]
[1725378569011,0.065,57735.0,57734.0,0.3571571]
[1725378569317,0.005,57735.0,57734.0,0.4437821]
[1725378569627,0.005,57735.0,57734.0,0.57574907]
[1725378569812,0.005,57735.0,57734.0,3.47574907]
[1725378570124,0.005,57735.0,57734.0,3.38912407]
[1725378570306,0.005,57735.0,57734.0,4.50872407]
[1725378571019,0.005,57735.0,57734.0,3.38912407]
[1725378574031,0.0004,57740.0,57739.0,0.086618]
[1725378574326,0.0004,57740.0,57739.0,0.81938497]
[1725378575330,0.0114,57740.0,57739.0,0.82038497]
[1725378577116,0.0054,57740.0,57739.0,0.81938497]
[1725378577921,0.0004,57740.0,57739.0,0.82138497]
[1725378580323,0.0004,57740.0,57739.0,0.81938497]
[1725378580519,0.0004,57740.0,57739.0,0.73476697]
[1725378580723,0.087016,57740.0,57739.0,0.49476697]
[1725378580928,0.173632,57740.0,57739.0,0.002]
[1725378582324,0.084618,57739.0,57734.0,0.11594232]
[1725378582514,0.0004,57735.0,57734.0,0.11594232]
[1725378582718,0.0004,57735.0,57734.0,0.24794127]
[1725378582914,0.087024,57735.0,57734.0,0.24794127]
[1725378583215,0.0004,57735.0,57734.0,0.33456627]
[1725378583420,0.0004,57735.0,57734.0,0.24812904]
[1725378583817,0.0004,57735.0,57734.0,1.72852904]
[1725378584021,0.0004,57740.0,57739.0,0.086618]
[1725378584216,0.0004,57740.0,57739.0,0.81938994]
[1725378584416,0.0004,57740.0,57739.0,0.45858994]
[1725378584628,0.0004,57740.0,57739.0,3.35858994]
[1725378584921,0.0074,57740.0,57739.0,0.45958994]
[1725378585114,0.007,57740.0,57739.0,0.45958994]
[1725378585317,0.007,57740.0,57739.0,0.82038994]
[1725378585518,0.086613,57743.0,57741.0,0.086614]
[1725378585720,0.086613,57743.0,57742.0,0.45839126]
[1725378585924,0.086613,57743.0,57742.0,0.4583907]
[1725378586716,0.086608,57746.0,57742.0,0.4583907]
[1725378586923,0.086608,57746.0,57742.0,0.32641876]
[1725378587226,0.086608,57746.0,57743.0,0.08641876]
[1725378587421,0.086603,57749.0,57744.0,0.08661]
[1725378587614,0.086599,57752.0,57744.0,0.57935586]
[1725378588023,0.086599,57752.0,57744.0,0.68307874]
[1725378588222,0.00825968,57745.0,57744.0,0.68307874]
[1725378588918,0.00825968,57745.0,57744.0,0.68407874]
[1725378589933,0.00825968,57745.0,57744.0,0.58035586]
[1725378590121,0.00825968,57745.0,57744.0,0.68398877]
[1725378590624,0.004,57745.0,57744.0,0.57935586]
[1725378590931,0.004,57745.0,57744.0,0.81935586]
[1725378591127,0.004,57745.0,57744.0,1.93887586]
[1725378591426,0.004,57755.0,57753.0,0.086596]
[1725378591615,0.3608,57757.0,57754.0,0.24]
[1725378591816,0.447391,57757.0,57755.0,0.06906094]
[1725378592014,0.086592,57756.0,57755.0,0.06906094]
[1725378592219,0.3608,57757.0,57754.0,0.06906094]
[1725378592220,0.086594,57755.0,57754.0,0.06906094]
[1725378592417,0.086595,57754.0,57753.0,0.06906094]
[1725378592622,0.086597,57753.0,57752.0,0.06906094]
[1725378592821,0.086997,57753.0,57751.0,0.24]
[1725378593021,0.0004,57752.0,57751.0,0.24]
[1725378593226,0.085997,57753.0,57751.0,0.24]
[1725378594721,0.082997,57753.0,57751.0,0.24]
[1725378594932,0.083997,57753.0,57751.0,0.24]
[1725378595439,0.083997,57753.0,57751.0,0.245]
[1725378595627,0.083997,57753.0,57751.0,0.2740868]
[1725378595821,0.086598,57752.0,57751.0,0.2740868]
[1725378596025,0.083997,57753.0,57751.0,0.2740868]
[1725378596221,0.083997,57753.0,57752.0,0.06906429]
[1725378596424,0.083997,57753.0,57751.0,0.2740868]
[1725378596730,0.0004,57752.0,57751.0,0.2740868]
[1725378597429,0.0014,57752.0,57751.0,0.2740868]
[1725378599333,0.0014,57752.0,57751.0,0.44701311]
[1725378599627,0.0014,57752.0,57751.0,0.20701311]
[1725378599830,0.0014,57752.0,57751.0,0.3606868]
[1725378600430,0.087998,57752.0,57751.0,0.0340868]
[1725378601231,0.427998,57752.0,57751.0,0.0340868]
[1725378601529,0.427998,57752.0,57751.0,0.1206868]
[1725378601530,0.0014,57752.0,57751.0,0.1206868]
[1725378601926,0.087998,57752.0,57751.0,0.0340868]
[1725378602127,0.414596,57752.0,57751.0,0.0340868]
[1725378602442,0.534596,57752.0,57751.0,0.08591773]
[1725378602735,0.534596,57752.0,57751.0,0.0340868]
[1725378603121,1.307792,57752.0,57751.0,0.005]
[1725378603326,0.086603,57749.0,57748.0,0.05209551]
[1725378603526,0.807803,57749.0,57748.0,0.00025968]
[1725378603730,1.99639491,57749.0,57748.0,0.00025968]
[1725378604133,2.100489,57749.0,57748.0,0.00025968]
[1725378604329,2.16960091,57749.0,57748.0,0.00025968]
[1725378604631,2.600289,57749.0,57748.0,0.00025968]
[1725378605235,2.601289,57749.0,57748.0,0.00825968]
[1725378605828,2.611289,57749.0,57748.0,0.00125968]
[1725378607439,2.610289,57749.0,57748.0,0.00125968]
[1725378607634,2.6803808,57749.0,57748.0,0.00225968]
[1725378608244,2.611289,57749.0,57748.0,0.00225968]
[1725378608744,2.68037257,57749.0,57748.0,0.00225968]
[1725378609936,0.259839,57742.0,57741.0,0.004]
[1725378610235,0.086625,57734.0,57731.0,0.05583583]
[1725378610431,0.173262,57730.0,57729.0,0.05983583]
[1725378610639,0.173662,57730.0,57729.0,0.08930029]
[1725378610828,0.173262,57730.0,57729.0,0.08930029]
[1725378611438,0.172262,57730.0,57729.0,0.03746446]
[1725378611738,0.171262,57730.0,57729.0,0.08930029]
[1725378612243,0.172262,57730.0,57729.0,0.04746446]
[1725378612736,0.172262,57730.0,57729.0,0.04646446]
[1725378613338,0.172262,57730.0,57729.0,0.04746446]
[1725378614134,0.172262,57730.0,57729.0,0.04646446]
[1725378616353,0.085631,57730.0,57729.0,0.13309746]
[1725378617031,0.001,57730.0,57729.0,0.13309746]
[1725378617234,0.001,57730.0,57729.0,0.63573329]
[1725378617435,0.001,57730.0,57729.0,1.10357746]
[1725378617741,0.0004,57732.0,57731.0,0.08663]
[1725378617939,0.0004,57732.0,57731.0,0.77350798]
[1725378618139,0.0004,57732.0,57731.0,3.7193845]
[1725378618447,0.0004,57732.0,57731.0,4.8390245]
[1725378618950,0.0014,57732.0,57731.0,0.3668]
[1725378619147,0.088028,57732.0,57731.0,0.006]
[1725378620145,0.090028,57732.0,57731.0,0.006]
[1725378620348,0.537456,57732.0,57731.0,0.006]
[1725378620858,0.657456,57732.0,57731.0,0.006]
[1725378621845,0.657456,57732.0,57729.0,0.03746446]
[1725378621846,0.159262,57730.0,57729.0,0.03746446]
[1725378622041,0.399662,57730.0,57729.0,0.03746446]
[1725378622548,0.392662,57730.0,57729.0,0.03746446]
[1725378623947,0.307031,57730.0,57729.0,0.03746446]
[1725378624155,0.307031,57730.0,57729.0,0.41577068]
[1725378624156,0.0014,57730.0,57729.0,0.41577068]
[1725378624355,0.088031,57730.0,57729.0,0.41577068]
[1725378624647,0.088031,57730.0,57729.0,0.36409746]
[1725378625233,0.088031,57730.0,57729.0,0.27746446]
[1725378626643,0.088031,57730.0,57729.0,0.34635123]
[1725378627048,0.088031,57730.0,57729.0,0.27746446]
[1725378627266,0.088031,57730.0,57729.0,0.03746446]
[1725378628344,0.088031,57730.0,57729.0,0.34635123]
[1725378628550,0.088031,57730.0,57729.0,0.27746446]
[1725378630457,0.088031,57730.0,57729.0,0.03746446]
[1725378631959,0.0014,57730.0,57729.0,0.570976]
[1725378632257,0.0004,57732.0,57731.0,0.17326]
[1725378632456,0.00088,57733.0,57732.0,0.413256]
[1725378632759,0.8762,57739.0,57734.0,0.086625]
[1725378632949,0.8762,57739.0,57734.0,0.37922054]
[1725378632950,0.87708,57739.0,57734.0,0.37922054]
[1725378633150,0.87708,57739.0,57734.0,1.49882054]
[1725378633455,0.87708,57739.0,57734.0,1.81660309]
[1725378633770,0.24,57738.0,57734.0,3.59698148]
[1725378633959,0.32688368,57735.0,57734.0,0.13195648]
[1725378634158,0.32688368,57735.0,57729.0,0.03826446]
[1725378634159,0.17325,57734.0,57733.0,0.08632024]
[1725378634361,0.08663,57731.0,57730.0,0.08632024]
[1725378634555,0.086631,57730.0,57729.0,0.1245847]
[1725378634754,0.326631,57730.0,57729.0,0.25656436]
[1725378634950,0.326631,57730.0,57729.0,0.03826446]
[1725378636564,0.086631,57730.0,57729.0,0.03826446]
[1725378636751,0.086631,57730.0,57729.0,0.2565671]
[1725378636953,0.087631,57730.0,57729.0,0.1245847]
[1725378637761,1.290462,57730.0,57729.0,0.03826446]
[1725378637964,2.450142,57730.0,57729.0,0.0088]
[1725378638149,1.850142,57730.0,57729.0,0.0088]
[1725378638349,0.963831,57730.0,57729.0,0.0088]
[1725378641864,1.410462,57730.0,57729.0,0.07793619]
[1725378642063,1.410462,57730.0,57729.0,0.0088]
[1725378642258,1.46226745,57730.0,57729.0,0.0088]
[1725378642560,2.616773,57730.0,57729.0,0.0088]
[1725378642963,2.75258494,57730.0,57725.0,0.05184658]
[1725378643160,1.7714007,57726.0,57725.0,0.05184658]
[1725378643469,0.773074,57726.0,57725.0,0.05184658]
[1725378643666,0.173278,57725.0,57724.0,0.00025968]
[1725378644059,0.650278,57725.0,57724.0,0.00025968]
[1725378644961,0.650278,57725.0,57724.0,0.05208721]
[1725378646065,0.736917,57725.0,57724.0,0.05208721]
[1725378646263,1.619117,57725.0,57724.0,0.05308721]
[1725378646466,1.619117,57725.0,57724.0,0.00125968]
[1725378647368,2.259117,57725.0,57724.0,0.00125968]
[1725378647664,1.659117,57725.0,57724.0,0.00125968]
[1725378647871,1.572478,57725.0,57724.0,0.00125968]
[1725378648868,1.572478,57725.0,57724.0,0.05308721]
[1725378649376,1.572478,57725.0,57724.0,0.00125968]
[1725378650657,1.573278,57725.0,57724.0,0.00125968]
[1725378651469,0.968639,57725.0,57724.0,0.00125968]
[1725378651671,0.968639,57725.0,57724.0,0.32789968]
[1725378651672,0.883,57725.0,57724.0,0.32789968]
[1725378652068,0.093439,57725.0,57724.0,0.32789968]
[1725378653367,0.093439,57725.0,57724.0,0.00125968]
[1725378656371,0.540078,57725.0,57724.0,0.00125968]
[1725378656568,0.540078,57725.0,57724.0,0.0703364]
[1725378657576,1.089617,57725.0,57724.0,0.00125968]
[1725378658172,1.965817,57725.0,57724.0,0.00125968]
[1725378660476,1.965817,57725.0,57724.0,6.8e-07]
[1725378660477,3.2240567,57725.0,57724.0,6.8e-07]
[1725378660783,0.173304,57716.0,57714.0,0.06907672]
[1725378660979,0.086655,57714.0,57712.0,0.06907672]
[1725378661275,0.086661,57710.0,57709.0,0.06907672]
[1725378661475,0.086661,57710.0,57705.0,0.08632024]
[1725378661476,0.086664,57708.0,57705.0,0.08632024]
[1725378661682,0.086664,57708.0,57705.0,0.11525324]
[1725378661871,0.084467,57706.0,57705.0,0.11525324]
[1725378662067,0.084467,57706.0,57705.0,0.03766456]
[1725378662068,0.083667,57706.0,57705.0,0.03766456]
[1725378662278,0.086669,57705.0,57704.0,1.11905346]
[1725378662472,0.087469,57705.0,57704.0,1.24925301]
[1725378662666,0.087469,57705.0,57704.0,1.24925469]
[1725378662871,0.087469,57705.0,57704.0,1.28608681]
[1725378663066,0.087469,57705.0,57704.0,1.06766104]
[1725378663272,0.087469,57705.0,57704.0,1.19969987]
[1725378663576,0.087469,57705.0,57704.0,1.11303087]
[1725378663880,0.074469,57705.0,57704.0,1.11303087]
[1725378664672,0.074469,57705.0,57704.0,1.12703087]
[1725378664983,0.076469,57705.0,57704.0,1.12703087]
[1725378665183,0.076469,57705.0,57704.0,1.2133887]
[1725378665688,0.076469,57705.0,57704.0,1.12703087]
[1725378665980,0.076469,57705.0,57704.0,1.21339817]
[1725378666177,0.076469,57705.0,57704.0,0.99499204]
[1725378666884,0.076469,57705.0,57704.0,0.50529204]
[1725378667072,1.039338,57705.0,57704.0,0.49676398]
[1725378667278,1.126007,57705.0,57704.0,0.04256398]
[1725378667479,1.579307,57705.0,57704.0,0.04256398]
[1725378669479,1.689307,57705.0,57704.0,0.04256398]
[1725378669875,1.236007,57705.0,57704.0,0.04256398]
[1725378670078,1.149338,57705.0,57704.0,0.04256398]
[1725378670290,0.952669,57705.0,57704.0,0.12923398]
[1725378670585,0.952669,57705.0,57704.0,0.19828856]
[1725378670786,0.952669,57705.0,57704.0,0.12923398]
[1725378671085,0.951669,57705.0,57704.0,0.11523398]
[1725378671381,0.951669,57705.0,57704.0,0.02856398]
[1725378671382,0.953669,57705.0,57704.0,0.02856398]
[1725378671783,0.88,57705.0,57704.0,0.11523398]
[1725378672383,0.91,57705.0,57704.0,0.11523398]
[1725378672587,1.236669,57705.0,57704.0,0.02856398]
[1725378672783,1.236669,57705.0,57704.0,0.09762082]
[1725378673189,1.323338,57705.0,57704.0,0.02856398]
[1725378673483,0.533807,57705.0,57704.0,0.02856398]
[1725378673678,0.260046,57696.0,57695.0,0.004]
[1725378673984,0.260046,57696.0,57694.0,0.00867952]
[1725378673985,0.173368,57695.0,57694.0,0.00867952]
[1725378674187,0.174168,57695.0,57694.0,0.00867952]
[1725378674388,0.173368,57695.0,57694.0,0.00867952]
[1725378674573,0.086693,57689.0,57688.0,0.9526]
[1725378674777,0.688293,57689.0,57688.0,0.96112174]
[1725378674987,0.683293,57689.0,57688.0,0.96112174]
[1725378675585,0.683293,57689.0,57688.0,0.99003298]
[1725378675778,0.683293,57689.0,57688.0,0.99403298]
[1725378676787,0.684293,57689.0,57688.0,0.99403298]
[1725378677084,0.684293,57689.0,57688.0,0.03291124]
[1725378677085,0.770986,57689.0,57688.0,0.03291124]
[1725378677386,0.890986,57689.0,57688.0,0.03291124]
[1725378678176,0.890986,57689.0,57688.0,0.02891124]
[1725378678375,0.0867,57684.0,57683.0,0.00025992]
[1725378678586,0.3275,57684.0,57683.0,0.00025992]
[1725378678781,0.4142,57684.0,57683.0,0.00025992]
[1725378679587,0.4152,57684.0,57683.0,0.00025992]
[1725378679785,1.7889,57684.0,57683.0,0.00025992]
[1725378679988,1.8689,57684.0,57683.0,0.00025992]
[1725378680187,1.8699,57684.0,57683.0,0.00025992]
[1725378680374,1.8699,57684.0,57683.0,9.2e-07]
[1725378680877,3.07668,57684.0,57683.0,9.2e-07]
[1725378681078,3.01668,57684.0,57683.0,9.2e-07]
[1725378681289,3.01668,57684.0,57673.0,0.004]
[1725378681290,0.260145,57674.0,57673.0,0.004]
[1725378681590,0.17346,57664.0,57663.0,0.004]
[1725378681784,0.086733,57662.0,57661.0,0.06905684]
[1725378681979,0.087533,57662.0,57661.0,0.06905684]
[1725378682182,0.086735,57661.0,57660.0,0.06905684]
[1725378682380,0.0008,57661.0,57659.0,0.3911578]
[1725378682591,0.086736,57660.0,57659.0,0.45845464]
[1725378682782,0.086736,57660.0,57659.0,0.45925464]
[1725378683089,0.086736,57660.0,57659.0,0.3901978]
[1725378684293,0.087736,57660.0,57659.0,0.3901978]
[1725378685081,0.088736,57660.0,57659.0,0.3901978]
[1725378685494,0.002,57660.0,57659.0,0.3901978]
[1725378686893,0.002,57660.0,57659.0,0.0293978]
[1725378687485,0.002,57660.0,57659.0,3.0161358]
[1725378687984,0.002,57660.0,57659.0,2.9293978]
[1725378688488,0.002,57660.0,57659.0,0.0293978]
[1725378688991,0.002,57660.0,57659.0,0.18519264]
[1725378689294,0.0028,57660.0,57659.0,0.1161358]
[1725378689491,0.0028,57660.0,57659.0,0.18519264]
[1725378690493,0.0028,57660.0,57659.0,1.30547264]
[1725378690797,0.00025992,57667.0,57666.0,0.086727]
[1725378690986,0.004,57679.0,57666.0,0.3608]
[1725378691296,0.086701,57684.0,57680.0,0.086706]
[1725378691496,0.75718121,57685.0,57682.0,0.24]
[1725378691497,0.086702,57683.0,57682.0,0.24]
[1725378691787,0.086702,57683.0,57673.0,0.42958226]
[1725378691788,0.24,57684.0,57679.0,0.24]
[1725378692096,0.24,57684.0,57677.0,0.4884]
[1725378692097,0.086709,57679.0,57677.0,0.4884]
[1725378692594,0.087709,57679.0,57677.0,0.4884]
[1725378692798,0.086709,57678.0,57677.0,0.4884]
[1725378693497,0.086709,57678.0,57676.0,0.24026014]
[1725378693693,0.086709,57678.0,57676.0,0.26901845]
[1725378693895,0.086704,57682.0,57676.0,0.26901845]
[1725378694085,0.086706,57681.0,57676.0,0.26901845]
[1725378694286,0.01,57684.0,57679.0,0.6008]
[1725378694619,0.009,57684.0,57683.0,0.326702]
[1725378694895,0.3608,57692.0,57683.0,0.76008]
[1725378695192,0.3608,57692.0,57680.0,0.4887]
[1725378695193,0.76118121,57696.0,57686.0,0.39552736]
[1725378695389,0.99718121,57696.0,57686.0,0.39552736]
[1725378695585,0.086691,57691.0,57686.0,0.30883036]
[1725378695783,0.086691,57691.0,57686.0,0.24]
[1725378695988,0.086691,57691.0,57685.0,0.15552836]
[1725378696191,0.086685,57695.0,57686.0,0.39552736]
[1725378696406,0.086685,57695.0,57686.0,1.51556736]
[1725378696693,1.08386421,57696.0,57686.0,1.446737]
[1725378696894,0.99718121,57696.0,57686.0,1.446737]
[1725378697486,0.24,57689.0,57686.0,0.090697]
[1725378697792,0.24,57689.0,57686.0,0.099697]
[1725378698196,0.24,57689.0,57686.0,0.097697]
[1725378698800,0.17365214,57687.0,57686.0,0.07989772]
[1725378698993,0.53445214,57687.0,57686.0,0.011]
[1725378699593,0.66445214,57687.0,57686.0,0.011]
[1725378699903,1.94167335,57687.0,57686.0,0.011]
[1725378700192,1.42163335,57687.0,57686.0,0.011]
[1725378700398,2.62836935,57687.0,57686.0,0.011]
[1725378700886,2.65741925,57687.0,57686.0,0.011]
[1725378702788,2.67741925,57687.0,57686.0,0.011]
[1725378704486,0.173422,57677.0,57676.0,0.00426014]
[1725378704687,0.894222,57677.0,57676.0,0.02898432]
[1725378704887,0.894622,57677.0,57676.0,0.00026014]
[1725378706692,0.807911,57677.0,57676.0,0.00026014]
[1725378707092,0.894622,57677.0,57676.0,0.00026014]
[1725378707498,0.568911,57677.0,57676.0,0.01926014]
[1725378707700,0.3622,57677.0,57676.0,0.17486986]
[1725378708000,0.0014,57677.0,57676.0,0.10597214]
[1725378708393,0.0004,57677.0,57676.0,0.23407181]
[1725378708591,0.0004,57677.0,57676.0,0.24852495]
[1725378708592,0.0064,57677.0,57676.0,0.24852495]
[1725378708799,0.75718121,57684.0,57683.0,0.086702]
[1725378709097,0.00026014,57687.0,57683.0,0.37208178]
[1725378709298,0.00026014,57687.0,57686.0,0.41302179]
[1725378709603,0.00026014,57687.0,57686.0,0.45877878]
[1725378709897,0.00026014,57687.0,57686.0,0.93467878]
[1725378710299,0.00026014,57687.0,57686.0,1.02098154]
[1725378711001,0.00126014,57687.0,57686.0,1.02898154]
[1725378711298,0.00126014,57687.0,57686.0,0.094697]
[1725378711493,0.00126014,57687.0,57686.0,0.36376836]
[1725378711689,0.00126014,57687.0,57686.0,0.04007136]
[1725378711895,0.08795614,57687.0,57686.0,0.04007136]
[1725378712994,1.02535614,57687.0,57686.0,0.04007136]
[1725378714503,1.78253735,57687.0,57686.0,0.04007136]
[1725378714806,1.86923335,57687.0,57686.0,0.04007136]
[1725378715107,0.84513735,57687.0,57686.0,0.04007136]
[1725378715291,0.75844135,57687.0,57686.0,0.19580687]
[1725378715497,0.75844135,57687.0,57686.0,0.12676836]
[1725378715691,0.00126014,57687.0,57686.0,0.3451423]
[1725378716101,0.00126014,57687.0,57686.0,0.25883954]
[1725378717003,0.00126014,57687.0,57686.0,0.12676836]
[1725378717205,0.00126014,57687.0,57686.0,0.34518004]
[1725378717503,0.00126014,57687.0,57686.0,0.25884134]
[1725378718404,0.75718121,57696.0,57695.0,0.086684]
[1725378718604,0.3608,57699.0,57698.0,0.086679]
[1725378718914,0.3608,57699.0,57698.0,0.326679]
[1725378719296,0.086676,57701.0,57698.0,0.326679]
[1725378719909,0.01,57699.0,57698.0,0.327679]
[1725378720405,0.01,57699.0,57698.0,0.45972497]
[1725378720605,0.086671,57704.0,57700.0,0.086675]
[1725378720797,0.086671,57704.0,57703.0,0.30910686]
[1725378720996,0.086671,57704.0,57700.0,0.17305857]
[1725378720997,0.086671,57704.0,57702.0,0.06910686]
[1725378721293,0.086672,57703.0,57702.0,0.06910686]
[1725378721496,0.087072,57703.0,57702.0,0.06910686]
[1725378721701,0.087072,57703.0,57702.0,0.06908491]
[1725378722604,0.0004,57703.0,57702.0,0.15575791]
[1725378722911,0.0004,57703.0,57702.0,0.53385657]
[1725378723209,0.0004,57703.0,57702.0,0.58050801]
[1725378723507,0.0004,57703.0,57702.0,0.666788]
[1725378723806,0.0054,57703.0,57702.0,0.666788]
[1725378724005,0.0054,57703.0,57702.0,0.58050801]
[1725378724203,0.0054,57703.0,57702.0,0.66678339]
[1725378724404,0.0054,57703.0,57702.0,0.448473]
[1725378724597,0.0004,57703.0,57702.0,0.53674838]
[1725378725200,0.0004,57703.0,57702.0,0.450473]
[1725378725601,0.087072,57703.0,57702.0,0.3638]
[1725378725793,0.087072,57703.0,57702.0,0.003]
[1725378725794,0.500416,57703.0,57702.0,0.003]
[1725378725993,0.500416,57703.0,57696.0,0.10539779]
[1725378725994,0.251043,57697.0,57696.0,0.00176]
[1725378726207,0.251043,57697.0,57694.0,0.00026014]
[1725378726208,0.260052,57695.0,57694.0,0.00026014]
[1725378726402,1.400852,57695.0,57694.0,1.4e-07]
[1725378726605,2.75503321,57695.0,57694.0,1.4e-07]
[1725378726799,2.83371721,57695.0,57686.0,1.4e-07]
[1725378727002,2.83371721,57695.0,57673.0,0.08627538]
[1725378727003,0.086717,57673.0,57672.0,0.004]
[1725378727202,0.086717,57673.0,57661.0,0.10363779]
[1725378727203,0.08672,57671.0,57666.0,0.18345626]
[1725378727410,0.2404,57673.0,57666.0,0.06897554]
[1725378727411,0.446926,57667.0,57666.0,0.06897554]
[1725378727712,0.086728,57666.0,57662.0,0.02864047]
[1725378727895,0.086728,57666.0,57654.0,0.08627538]
[1725378727896,0.0004,57665.0,57660.0,0.24]
[1725378728095,0.0004,57665.0,57664.0,0.3628]
[1725378728299,0.0004,57665.0,57664.0,0.002]
[1725378728506,0.0004,57665.0,57664.0,0.242]
[1725378728701,0.0004,57665.0,57664.0,0.002]
[1725378729009,0.0004,57665.0,57664.0,0.242]
[1725378729215,0.2404,57665.0,57664.0,0.002]
[1725378729403,0.24,57665.0,57664.0,0.002]
[1725378729598,0.3608,57668.0,57664.0,0.002]
[1725378729599,0.086728,57666.0,57664.0,0.002]
[1725378729809,0.24,57665.0,57664.0,0.002]
[1725378730115,0.00026014,57671.0,57666.0,0.086727]
[1725378730306,0.00026014,57671.0,57667.0,0.570925]
[1725378730611,0.00026014,57671.0,57667.0,0.4842]
[1725378730819,0.00026014,57671.0,57670.0,0.3]
[1725378730996,0.00026014,57671.0,57670.0,0.8202]
[1725378731200,0.004,57683.0,57670.0,1.781]
[1725378731395,0.087096,57687.0,57670.0,1.781]
[1725378731396,0.3608,57684.0,57682.0,0.3]
[1725378731701,0.3608,57684.0,57670.0,0.3608]
[1725378731702,0.4475,57684.0,57679.0,0.3]
[1725378732307,0.3608,57684.0,57679.0,0.3]
[1725378732902,0.086704,57682.0,57679.0,0.3]
[1725378733205,0.08671,57678.0,57676.0,0.00026014]
[1725378733409,0.0004,57677.0,57676.0,0.00026014]
[1725378734708,0.0054,57677.0,57676.0,0.00126014]
[1725378735519,0.0054,57677.0,57676.0,1.63784428]
[1725378735819,0.0064,57677.0,57676.0,1.20813214]
[1725378736314,0.00066014,57687.0,57683.0,0.3]
[1725378736607,0.00066014,57687.0,57686.0,0.3608]
[1725378737199,0.00026014,57687.0,57686.0,1.48084]
[1725378737403,0.00026014,57687.0,57686.0,1.8732033]
[1725378738008,0.75718121,57695.0,57692.0,0.086688]
[1725378738212,0.75718121,57695.0,57694.0,0.36891668]
[1725378738520,0.75718121,57706.0,57696.0,0.086682]
[1725378738719,0.44842601,57707.0,57703.0,0.3]
[1725378738720,0.447466,57707.0,57703.0,0.3]
[1725378739316,0.3608,57707.0,57703.0,0.3]
[1725378739905,0.75806121,57710.0,57704.0,0.08667]
[1725378740106,0.001,57707.0,57704.0,0.08667]
[1725378740502,0.006,57707.0,57704.0,0.08667]
[1725378741005,0.006,57707.0,57705.0,0.086668]
[1725378741215,0.006,57707.0,57706.0,0.906547]
[1725378741422,0.001,57707.0,57706.0,1.267347]
[1725378741603,0.006,57707.0,57706.0,1.867347]
[1725378741804,0.006,57707.0,57706.0,1.95349285]
[1725378742010,0.006,57707.0,57706.0,1.867347]
[1725378742513,0.007,57707.0,57706.0,1.867347]
[1725378743212,0.009,57707.0,57706.0,1.867347]
[1725378743808,0.011,57707.0,57706.0,1.868347]
[1725378745119,0.011,57707.0,57706.0,1.93708496]
[1725378745416,0.011,57707.0,57706.0,1.25041796]
[1725378745725,0.011,57707.0,57706.0,1.78168]
[1725378746314,0.011,57707.0,57706.0,0.6618]
[1725378746511,0.011,57707.0,57706.0,0.301]
[1725378746822,0.097666,57707.0,57706.0,0.301]
[1725378747316,0.011,57707.0,57706.0,0.301]
[1725378748908,0.011,57707.0,57706.0,0.001]
[1725378748909,0.458466,57707.0,57706.0,0.001]
[1725378751211,0.097666,57707.0,57706.0,0.301]
[1725378753018,0.097666,57707.0,57706.0,0.001]
[1725378753329,0.545132,57707.0,57706.0,0.001]
[1725378753925,0.458466,57707.0,57706.0,0.001]
[1725378754925,0.00436882,57707.0,57706.0,1.507547]
[1725378755124,0.3608,57707.0,57706.0,0.001]
[1725378755325,0.620798,57707.0,57706.0,0.001]
[1725378755632,0.620798,57707.0,57686.0,0.004]
[1725378755633,0.086696,57687.0,57686.0,0.004]
[1725378755823,0.0867,57684.0,57683.0,0.00863426]
[1725378756020,0.0867,57684.0,57677.0,0.943]
[1725378756021,0.0004,57684.0,57677.0,1.21241906]
[1725378756221,0.3612,57678.0,57677.0,0.02941906]
[1725378756439,0.3612,57678.0,57672.0,0.00021323]
[1725378756440,0.086715,57675.0,57672.0,0.00021323]
[1725378756728,0.3612,57673.0,57672.0,0.00021323]
[1725378756924,0.3602,57673.0,57672.0,0.00021323]
[1725378757328,0.3602,57673.0,57668.0,0.00026014]
[1725378757329,0.086723,57669.0,57668.0,0.00026014]
[1725378757527,0.684923,57669.0,57668.0,0.00026014]
[1725378757928,0.444923,57669.0,57668.0,0.00026014]
[1725378759027,0.444923,57669.0,57668.0,0.52046014]
[1725378759631,0.444923,57669.0,57668.0,0.00026014]
[1725378759825,0.440923,57669.0,57668.0,0.00026014]
[1725378760538,0.440923,57669.0,57668.0,0.00926014]
[1725378762031,0.440923,57669.0,57668.0,0.01426014]
[1725378763740,0.3612,57669.0,57668.0,0.01426014]
[1725378763947,0.3612,57669.0,57668.0,0.53446014]
[1725378764152,0.3612,57669.0,57668.0,0.01426014]
[1725378764341,0.447923,57669.0,57668.0,0.01426014]
[1725378766940,0.534646,57669.0,57668.0,0.01426014]
[1725378771632,1.054846,57669.0,57668.0,0.01426014]
[1725378771857,1.054846,57669.0,57659.0,0.004]
[1725378771858,0.086736,57660.0,57659.0,0.004]
[1725378772027,0.086748,57652.0,57651.0,0.00845848]
[1725378772330,0.086748,57652.0,57648.0,0.004]
[1725378772331,0.086754,57648.0,57647.0,0.086755]
[1725378772531,0.3608,57652.0,57647.0,0.09563899]
[1725378773046,0.072754,57648.0,57647.0,0.52928399]
[1725378773339,0.072754,57648.0,57647.0,0.00888399]
[1725378773542,0.072754,57648.0,57647.0,0.5204]
[1725378773742,0.072754,57648.0,57647.0,0.0085994]
[1725378773942,0.058754,57648.0,57644.0,0.08702014]
[1725378774435,0.3608,57652.0,57644.0,0.00887116]
[1725378774642,0.3608,57652.0,57647.0,0.014]
[1725378774643,0.087756,57648.0,57647.0,0.014]
[1725378775739,0.001,57648.0,57647.0,0.014]
[1725378775944,0.001,57648.0,57647.0,1.1344]
[1725378776241,0.001,57648.0,57647.0,1.221156]